fUST/lending_fUST_20240921
["ID","MTS","AMOUNT","RATE_DAILY","PERIOD"]
[338819571,1726926654888,-426.35407418,0.00015156,2]
[338819572,1726926654898,-500.0,0.00015156,2]
[338819573,1726926654908,-152.58491657,0.00015156,2]
[338819574,1726926654918,-151.0,0.00015158,2]
[338819575,1726926654928,-153.0,0.00015236,2]
[338819576,1726926654938,-300.0,0.000153,5]
[338819577,1726926654947,-150.0,0.00015344,2]
[338819578,1726926654957,-524.0,0.00015344,2]
[338819579,1726926654968,-1216.0,0.00015344,2]
[338819580,1726926654979,-150.0,0.00015344,2]
[338819581,1726926654989,-420.0,0.0001537,2]
[338819582,1726926654999,-154.164154,0.000154,2]
[338819583,1726926655009,-152.544998,0.00015406,2]
[338819584,1726926655020,-295.418057,0.00015406,2]
[338819585,1726926655030,-152.938434,0.00015406,2]
[338819586,1726926655040,-184.608407,0.00015406,2]
[338819587,1726926655050,-430.913341,0.00015406,2]
[338819588,1726926655060,-780.522279,0.00015406,2]
[338819589,1726926655070,-184.608407,0.00015406,2]
[338819590,1726926655080,-390.261139,0.00015406,2]
[338819591,1726926655090,-184.60841,0.00015406,2]
[338819592,1726926655099,-184.608407,0.00015406,2]
[338819593,1726926655109,-168.514112,0.00015406,2]
[338819594,1726926655119,-430.913342,0.00015406,2]
[338819595,1726926655128,-539.98,0.00015409,2]
[338819596,1726926655138,-500.0,0.00015409,2]
[338819597,1726926655148,-500.0,0.00015409,2]
[338819598,1726926655157,-500.0,0.00015409,2]
[338819599,1726926655167,-887.28,0.00015409,2]
[338819600,1726926655176,-500.0,0.00015409,2]
[338819601,1726926655186,-500.0,0.00015409,2]
[338819602,1726926655196,-500.0,0.00015409,2]
[338819603,1726926655206,-500.0,0.00015409,2]
[338819604,1726926655216,-500.0,0.00015409,2]
[338819605,1726926655226,-500.0,0.00015409,2]
[338819606,1726926655235,-400.01207385,0.00015409,2]
[338819607,1726926655245,-500.0,0.00015409,2]
[338819608,1726926655254,-500.0,0.00015409,2]
[338819609,1726926655264,-296.11,0.00015409,2]
[338819610,1726926655275,-500.0,0.00015409,2]
[338819611,1726926655284,-14753.28,0.00015409,2]
[338819612,1726926655294,-2334.74,0.00015409,2]
[338819613,1726926655304,-500.0,0.0001541,2]
[338819614,1726926655314,-508.15,0.0001541,2]
[338819615,1726926655323,-792.65,0.0001542,2]
[338819616,1726926655332,-645.64,0.0001542,2]
[338819617,1726926655342,-506.86662193,0.0001542,2]
[338819618,1726926655353,-500.0,0.0001542,2]
[338819619,1726926655364,-500.0,0.0001542,2]
[338819620,1726926655374,-500.0,0.0001542,2]
[338819621,1726926655383,-500.0,0.0001542,2]
[338819622,1726926655393,-500.0,0.0001542,2]
[338819623,1726926655402,-500.0,0.0001542,2]
[338819624,1726926655411,-500.0,0.0001542,2]
[338819625,1726926655421,-500.0,0.0001542,2]
[338819626,1726926655430,-500.0,0.0001542,2]
[338819627,1726926655440,-1193.54,0.0001542,2]
[338819628,1726926655450,-500.0,0.0001542,2]
[338819629,1726926655459,-596.93,0.0001542,2]
[338819630,1726926655469,-500.0,0.0001542,2]
[338819631,1726926655478,-500.0,0.0001542,2]
[338819632,1726926655487,-500.0,0.0001542,2]
[338819633,1726926655497,-500.0,0.0001542,2]
[338819634,1726926655506,-500.0,0.0001542,2]
[338819635,1726926655515,-500.0,0.0001542,2]
[338819636,1726926655525,-500.0,0.0001542,2]
[338819637,1726926655535,-717.7,0.0001542,2]
[338819638,1726926655544,-500.0,0.0001542,2]
[338819639,1726926655553,-500.0,0.0001542,2]
[338819640,1726926655563,-500.0,0.0001542,2]
[338819641,1726926655572,-500.0,0.00015421,2]
[338819642,1726926655582,-508.0,0.00015421,2]
[338819643,1726926655592,-500.0,0.00015421,2]
[338819644,1726926655602,-500.0,0.00015421,2]
[338819645,1726926655611,-787.39,0.00015421,2]
[338819646,1726926655620,-500.0,0.00015421,2]
[338819647,1726926655630,-500.0,0.00015421,2]
[338819648,1726926655639,-500.0,0.00015421,2]
[338819649,1726926655649,-500.0,0.00015421,2]
[338819650,1726926655658,-500.0,0.00015421,2]
[338819651,1726926655667,-500.0,0.00015421,2]
[338819652,1726926655677,-1068.0,0.00015421,2]
[338819653,1726926655687,-500.0,0.00015421,2]
[338819654,1726926655696,-500.0,0.00015421,2]
[338819655,1726926655705,-500.0,0.0001543,2]
[338819656,1726926655715,-500.0,0.0001543,2]
[338819657,1726926655725,-583.84113694,0.0001543,2]
[338819658,1726926655735,-500.0,0.0001543,2]
[338819659,1726926655744,-551.77,0.0001543,2]
[338819660,1726926655753,-575.3,0.0001543,2]
[338819661,1726926655763,-500.0,0.0001543,2]
[338819662,1726926655772,-500.0,0.0001543,2]
[338819663,1726926655782,-625.23,0.0001543,2]
[338819664,1726926655792,-500.0,0.0001543,2]
[338819665,1726926655801,-295.418057,0.00015599,2]
[338819666,1726926655811,-430.913341,0.00015599,2]
[338819667,1726926655821,-780.522279,0.00015599,2]
[338819668,1726926655830,-390.261139,0.00015599,2]
[338819669,1726926655840,-430.913342,0.00015599,2]
[338819670,1726926655849,-150.112233,0.000156,2]
[338819671,1726926655859,-663.97882779,0.00015612,2]
[338819672,1726926655868,-539.98,0.00015683,2]
[338819673,1726926655878,-500.0,0.00015683,2]
[338819674,1726926655888,-517.14369435,0.00015683,2]
[338819675,1726926655898,-500.0,0.00015683,2]
[338819676,1726926655908,-887.28,0.00015683,2]
[338819677,1726926655917,-500.0,0.00015683,2]
[338819678,1726926655927,-500.0,0.00015683,2]
[338819679,1726926655936,-500.0,0.00015683,2]
[338819680,1726926655947,-324.77478326,0.00015683,2]
[338819681,1726926655957,-500.0,0.00015683,2]
[338819682,1726926656107,-500.0,0.00015683,2]
[338819683,1726926656116,-500.0,0.00015683,2]
[338819684,1726926656125,-572.65261625,0.00015683,2]
[338819685,1726926656134,-500.0,0.00015683,2]
[338819686,1726926656143,-14753.28,0.00015683,2]
[338819687,1726926656153,-2334.74,0.00015683,2]
[338819688,1726926656163,-340.24244044,0.00015684,2]
[338819689,1726926656172,-508.15,0.00015684,2]
[338819690,1726926656182,-792.65,0.00015694,2]
[338819691,1726926656191,-645.64,0.00015694,2]
[338819692,1726926656203,-500.0,0.00015694,2]
[338819693,1726926656222,-500.0,0.00015694,2]
[338819694,1726926656233,-500.0,0.00015694,2]
[338819695,1726926656243,-500.0,0.00015694,2]
[338819696,1726926656253,-500.0,0.00015694,2]
[338819697,1726926656263,-500.0,0.00015694,2]
[338819698,1726926656272,-500.0,0.00015694,2]
[338819699,1726926656282,-500.0,0.00015694,2]
[338819700,1726926656292,-500.0,0.00015694,2]
[338819701,1726926656301,-1193.54,0.00015694,2]
[338819702,1726926656311,-375.08,0.00015694,2]
[338819703,1726926656321,-596.93,0.00015694,2]
[338819704,1726926656330,-500.0,0.00015694,2]
[338819705,1726926656340,-500.0,0.00015694,2]
[338819706,1726926656350,-500.0,0.00015694,2]
[338819707,1726926656363,-500.0,0.00015694,2]
[338819708,1726926656373,-292.86319176,0.00015694,2]
[338819709,1726926656383,-500.0,0.00015694,2]
[338819710,1726926656392,-381.26,0.00015694,2]
[338819711,1726926656402,-717.7,0.00015694,2]
[338819712,1726926656411,-500.0,0.00015694,2]
[338819713,1726926656421,-500.0,0.00015694,2]
[338819714,1726926656431,-500.0,0.00015694,2]
[338819715,1726926656441,-500.0,0.00015695,2]
[338819716,1726926656450,-508.0,0.00015695,2]
[338819717,1726926656460,-500.0,0.00015695,2]
[338819718,1726926656470,-500.0,0.00015695,2]
[338819719,1726926656480,-787.39,0.00015695,2]
[338819720,1726926656489,-500.0,0.00015695,2]
[338819721,1726926656498,-500.0,0.00015695,2]
[338819722,1726926656508,-500.0,0.00015695,2]
[338819723,1726926656518,-500.0,0.00015695,2]
[338819724,1726926656528,-300.96231367,0.00015695,2]
[338819725,1726926656538,-500.0,0.00015695,2]
[338819726,1726926656547,-1068.0,0.00015695,2]
[338819727,1726926656556,-500.0,0.00015695,2]
[338819728,1726926656565,-500.0,0.00015704,2]
[338819729,1726926656575,-349.62112397,0.00015704,2]
[338819730,1726926656585,-500.0,0.00015704,2]
[338819731,1726926656594,-551.77,0.00015704,2]
[338819732,1726926656603,-575.3,0.00015704,2]
[338819733,1726926656613,-500.0,0.00015704,2]
[338819734,1726926656622,-500.0,0.00015704,2]
[338819735,1726926656632,-625.23,0.00015704,2]
[338819736,1726926656642,-500.0,0.00015704,2]
[338819737,1726926656651,-1000.0,0.00015742,2]
[338819738,1726926656662,-1000.0,0.00015742,2]
[338819739,1726926656672,-1000.0,0.00015742,2]
[338819740,1726926656682,-500.0,0.00015742,2]
[338819741,1726926656691,-1000.0,0.00015742,2]
[338819742,1726926656701,-1000.0,0.00015742,2]
[338819743,1726926656711,-696.42918529,0.00015742,2]
[338819744,1726926656722,-500.32795844,0.00015742,2]
[338819745,1726926656731,-1000.0,0.00015742,2]
[338819746,1726926656741,-1000.0,0.00015742,2]
[338819747,1726926656751,-295.418057,0.00015791,2]
[338819748,1726926656761,-184.608407,0.00015791,2]
[338819749,1726926656770,-430.913341,0.00015791,2]
[338819750,1726926656779,-780.522279,0.00015791,2]
[338819751,1726926656788,-184.608407,0.00015791,2]
[338819752,1726926656798,-390.261139,0.00015791,2]
[338819753,1726926656807,-184.608407,0.00015791,2]
[338819754,1726926656816,-430.913342,0.00015791,2]
[338819755,1726926656830,-150.112233,0.000158,2]
[338819756,1726926656840,-300.0,0.00015903,2]
[338819757,1726926656849,-150.0,0.00015903,2]
[338819758,1726926656859,-539.98,0.00015957,2]
[338819759,1726926656869,-368.67867042,0.00015957,2]
[338819760,1726926656878,-500.0,0.00015957,2]
[338819761,1726926656888,-887.28,0.00015957,2]
[338819762,1726926656897,-500.0,0.00015957,2]
[338819763,1726926656907,-282.9529803,0.00015957,2]
[338819764,1726926656918,-500.0,0.00015957,2]
[338819765,1726926656930,-500.0,0.00015957,2]
[338819766,1726926656940,-500.0,0.00015957,2]
[338819767,1726926656950,-500.0,0.00015957,2]
[338819768,1726926656961,-216.61527665,0.00015957,2]
[338819769,1726926656970,-14753.28,0.00015957,2]
[338819770,1726926656980,-2334.74,0.00015957,2]
[338819771,1726926656990,-508.15,0.00015958,2]
[338819772,1726926657000,-792.65,0.00015968,2]
[338819773,1726926657010,-645.64,0.00015968,2]
[338819774,1726926657019,-500.0,0.00015968,2]
[338819775,1726926657029,-500.0,0.00015968,2]
[338819776,1726926657039,-500.0,0.00015968,2]
[338819777,1726926657048,-560.11274404,0.00015968,2]
[338819778,1726926657058,-500.0,0.00015968,2]
[338819779,1726926657067,-500.0,0.00015968,2]
[338819780,1726926657077,-500.0,0.00015968,2]
[338819781,1726926657087,-350.54262105,0.00015968,2]
[338819782,1726926657096,-1193.54,0.00015968,2]
[338819783,1726926657106,-596.93,0.00015968,2]
[338819784,1726926657115,-500.0,0.00015968,2]
[338819785,1726926657125,-500.0,0.00015968,2]
[338819786,1726926657135,-500.0,0.00015968,2]
[338819787,1726926657144,-500.0,0.00015968,2]
[338819788,1726926657154,-500.0,0.00015968,2]
[338819789,1726926657164,-717.7,0.00015968,2]
[338819790,1726926657173,-500.0,0.00015968,2]
[338819791,1726926657183,-633.92825817,0.00015968,2]
[338819792,1726926657192,-500.0,0.00015969,2]
[338819793,1726926657202,-508.0,0.00015969,2]
[338819794,1726926657211,-500.0,0.00015969,2]
[338819795,1726926657222,-500.0,0.00015969,2]
[338819796,1726926657235,-787.39,0.00015969,2]
[338819797,1726926657244,-500.0,0.00015969,2]
[338819798,1726926657254,-500.0,0.00015969,2]
[338819799,1726926657264,-500.0,0.00015969,2]
[338819800,1726926657278,-500.0,0.00015969,2]
[338819801,1726926657287,-500.0,0.00015969,2]
[338819802,1726926657297,-1068.0,0.00015969,2]
[338819803,1726926657307,-500.0,0.00015969,2]
[338819804,1726926657318,-500.0,0.00015978,2]
[338819805,1726926657328,-500.0,0.00015978,2]
[338819806,1726926657337,-551.77,0.00015978,2]
[338819807,1726926657349,-575.3,0.00015978,2]
[338819808,1726926657360,-500.0,0.00015978,2]
[338819809,1726926657371,-500.0,0.00015978,2]
[338819810,1726926657381,-625.23,0.00015978,2]
[338819811,1726926657390,-500.0,0.00015978,2]
[338819812,1726926657402,-151.0,0.0001598,2]
[338819813,1726926657411,-295.418057,0.00015984,2]
[338819814,1726926657421,-430.913341,0.00015984,2]
[338819815,1726926657431,-780.522279,0.00015984,2]
[338819816,1726926657441,-390.261139,0.00015984,2]
[338819817,1726926657451,-430.913342,0.00015984,2]
[338819818,1726926657460,-6739.80038,0.00015999,2]
[338819819,1726926657472,-1000.0,0.00016,2]
[338819820,1726926657481,-1000.0,0.00016,2]
[338819821,1726926657491,-3000.0,0.00016,2]
[338819822,1726926657502,-3000.0,0.0001601,2]
[338819823,1726926657512,-3000.0,0.0001602,2]
[338819824,1726926657523,-3000.0,0.0001603,2]
[338819825,1726926657533,-3000.0,0.0001604,2]
[338819826,1726926657543,-1091.8436057,0.00016044,2]
[338819827,1726926657552,-3000.0,0.0001605,2]
[338819828,1726926657562,-3000.0,0.0001606,2]
[338819829,1726926657572,-3000.0,0.0001607,2]
[338819830,1726926657582,-3000.0,0.0001608,2]
[338819831,1726926657592,-3000.0,0.0001609,2]
[338819832,1726926657601,-3000.0,0.000161,2]
[338819833,1726926657611,-3000.0,0.0001611,2]
[338819834,1726926657621,-3000.0,0.0001612,2]
[338819835,1726926657632,-3000.0,0.0001613,2]
[338819836,1726926657643,-151.0,0.0001613,2]
[338819837,1726926657653,-151.0,0.0001613,2]
[338819838,1726926657663,-1353.282061,0.0001613,2]
[338819839,1726926657673,-1353.282061,0.0001613,2]
[338819840,1726926657683,-740.186254,0.0001613,2]
[338819841,1726926657694,-740.186254,0.0001613,2]
[338819842,1726926657703,-1106.068843,0.0001613,2]
[338819843,1726926657716,-442.887488,0.0001613,2]
[338819844,1726926657727,-1106.068843,0.0001613,2]
[338819845,1726926657739,-442.887488,0.0001613,2]
[338819846,1726926657751,-151.0,0.0001613,2]
[338819847,1726926657761,-151.0,0.0001613,2]
[338819848,1726926657771,-151.0,0.0001613,2]
[338819849,1726926657781,-228.217079,0.0001613,2]
[338819850,1726926657790,-228.217079,0.0001613,2]
[338819851,1726926657800,-180.172731,0.0001613,2]
[338819852,1726926657810,-180.172731,0.0001613,2]
[338819853,1726926657820,-3000.0,0.0001614,2]
[338819854,1726926657831,-205.0,0.0001614,2]
[338819855,1726926657842,-1110.54952904,0.00016143,2]
[338819856,1726926657853,-960.43763745,0.00016143,2]
[338819857,1726926657863,-3000.0,0.0001615,2]
[338819858,1726926657875,-3000.0,0.0001616,2]
[338819859,1726926657884,-328.12941,0.0001616,2]
[338819860,1726926657894,-328.12941,0.0001616,2]
[338819861,1726926657903,-151.0,0.0001616,2]
[338819862,1726926657913,-473.432147,0.0001616,2]
[338819863,1726926657923,-151.0,0.0001616,2]
[338819864,1726926657933,-473.432147,0.0001616,2]
[338819865,1726926657944,-177.463496,0.0001616,2]
[338819866,1726926657955,-177.463496,0.0001616,2]
[338819867,1726926657966,-737.547385,0.0001616,2]
[338819868,1726926657976,-737.547385,0.0001616,2]
[338819869,1726926657988,-3000.0,0.0001617,2]
[338819870,1726926657998,-152.544998,0.00016177,2]
[338819871,1726926658007,-295.418057,0.00016177,2]
[338819872,1726926658018,-184.608407,0.00016177,2]
[338819873,1726926658029,-430.913341,0.00016177,2]
[338819874,1726926658038,-780.522279,0.00016177,2]
[338819875,1726926658050,-184.608407,0.00016177,2]
[338819876,1726926658060,-390.261139,0.00016177,2]
[338819877,1726926658069,-184.608407,0.00016177,2]
[338819878,1726926658079,-168.514112,0.00016177,2]
[338819879,1726926658089,-430.913342,0.00016177,2]
[338819880,1726926658098,-3000.0,0.0001618,2]
[338819881,1726926658108,-3000.0,0.0001619,2]
[338819882,1726926658118,-1968.49110117,0.000162,2]
[338819883,1726926658337,-1031.50889883,0.000162,2]
[338819884,1726926658349,-274.81370612,0.0001621,2]
[338819885,1726926658461,-500.0,0.00014039,2]
[338819886,1726926658471,-500.0,0.00014039,2]
[338819887,1726926658480,-500.0,0.00014373,2]
[338819888,1726926658489,-500.0,0.00014587,2]
[338819889,1726926658498,-500.0,0.00014861,2]
[338819890,1726926658507,-500.0,0.00015135,2]
[338819891,1726926658516,-150.0,0.00015344,2]
[338819892,1726926658525,-500.0,0.00015409,2]
[338819893,1726926658535,-500.0,0.00015683,2]
[338819894,1726926658544,-500.0,0.00015957,2]
[338819895,1726926658557,-500.0,0.00015968,2]
[338819896,1726926658566,-2725.18629388,0.0001621,2]
[338819897,1726926658576,-3000.0,0.0001622,2]
[338819898,1726926658585,-214.0,0.0001622,7]
[338819899,1726926658594,-3000.0,0.0001623,2]
[338819900,1726926658604,-539.98,0.00016231,2]
[338819901,1726926658613,-500.0,0.00016231,2]
[338819902,1726926658622,-887.28,0.00016231,2]
[338819903,1726926658632,-500.0,0.00016231,2]
[338819904,1726926658641,-500.0,0.00016231,2]
[338819905,1726926658650,-277.17657893,0.00016231,2]
[338819906,1726926658660,-500.0,0.00016231,2]
[338819907,1726926658669,-500.0,0.00016231,2]
[338819908,1726926658678,-14753.28,0.00016231,2]
[338819909,1726926658687,-2334.74,0.00016231,2]
[338819910,1726926658696,-151.0,0.00016232,2]
[338819911,1726926658706,-151.0,0.00016232,2]
[338819912,1726926658715,-305.498028,0.00016232,2]
[338819913,1726926658724,-192.527021,0.00016232,2]
[338819914,1726926658734,-305.498028,0.00016232,2]
[338819915,1726926658743,-192.527021,0.00016232,2]
[338819916,1726926658753,-508.15,0.00016232,2]
[338819917,1726926658763,-3000.0,0.0001624,2]
[338819918,1726926658772,-792.65,0.00016242,2]
[338819919,1726926658781,-645.64,0.00016242,2]
[338819920,1726926658790,-500.0,0.00016242,2]
[338819921,1726926658799,-500.0,0.00016242,2]
[338819922,1726926658808,-316.82,0.00016242,2]
[338819923,1726926658818,-500.0,0.00016242,2]
[338819924,1726926658827,-500.0,0.00016242,2]
[338819925,1726926658837,-1193.54,0.00016242,2]
[338819926,1726926658846,-596.93,0.00016242,2]
[338819927,1726926658856,-500.0,0.00016242,2]
[338819928,1726926658866,-500.0,0.00016242,2]
[338819929,1726926658875,-500.0,0.00016242,2]
[338819930,1726926658884,-500.0,0.00016242,2]
[338819931,1726926658894,-500.0,0.00016242,2]
[338819932,1726926658904,-717.7,0.00016242,2]
[338819933,1726926658914,-500.0,0.00016242,2]
[338819934,1726926658924,-154.18,0.00016242,2]
[338819935,1726926658933,-500.0,0.00016243,2]
[338819936,1726926658944,-508.0,0.00016243,2]
[338819937,1726926658955,-323.0381368,0.00016243,2]
[338819938,1726926658964,-500.0,0.00016243,2]
[338819939,1726926658974,-787.39,0.00016243,2]
[338819940,1726926658983,-500.0,0.00016243,2]
[338819941,1726926658994,-500.0,0.00016243,2]
[338819942,1726926659004,-500.0,0.00016243,2]
[338819943,1726926659016,-500.0,0.00016243,2]
[338819944,1726926659026,-500.0,0.00016243,2]
[338819945,1726926659036,-1068.0,0.00016243,2]
[338819946,1726926659046,-500.0,0.00016243,2]
[338819947,1726926659055,-151.0,0.00016243,2]
[338819948,1726926659064,-151.0,0.00016243,2]
[338819949,1726926659074,-1470.685094,0.00016243,2]
[338819950,1726926659083,-1470.685094,0.00016243,2]
[338819951,1726926659092,-3000.0,0.0001625,2]
[338819952,1726926659102,-500.0,0.00016252,2]
[338819953,1726926659111,-500.0,0.00016252,2]
[338819954,1726926659120,-551.77,0.00016252,2]
[338819955,1726926659129,-575.3,0.00016252,2]
[338819956,1726926659138,-500.0,0.00016252,2]
[338819957,1726926659147,-500.0,0.00016252,2]
[338819958,1726926659157,-625.23,0.00016252,2]
[338819959,1726926659167,-576.389103,0.00016252,2]
[338819960,1726926659175,-576.389103,0.00016252,2]
[338819961,1726926659185,-500.0,0.00016252,2]
[338819962,1726926659195,-151.0,0.00016252,2]
[338819963,1726926659206,-151.0,0.00016252,2]
[338819964,1726926659216,-151.0,0.00016252,2]
[338819965,1726926659225,-151.0,0.00016252,2]
[338819966,1726926659234,-705.684641,0.00016252,2]
[338819967,1726926659244,-705.684641,0.00016252,2]
[338819968,1726926659420,-441.239415,0.00016252,2]
[338819969,1726926659430,-441.239415,0.00016252,2]
[338819970,1726926659442,-1149.185986,0.00016252,2]
[338819971,1726926659452,-151.0,0.00016252,2]
[338819972,1726926659462,-1149.185986,0.00016252,2]
[338819973,1726926659472,-151.0,0.00016252,2]
[338819974,1726926659482,-3000.0,0.0001626,2]
[338819975,1726926659491,-3000.0,0.0001627,2]
[338819976,1726926659501,-3000.0,0.0001628,2]
[338819977,1726926659511,-3000.0,0.0001629,2]
[338819978,1726926659520,-3000.0,0.000163,2]
[338819979,1726926659529,-3000.0,0.0001631,2]
[338819980,1726926659539,-3000.0,0.0001632,2]
[338819981,1726926659549,-3000.0,0.0001633,2]
[338819982,1726926659557,-1302.07657,0.0001633,2]
[338819983,1726926659567,-3000.0,0.0001634,2]
[338819984,1726926659577,-927.96169,0.0001634,2]
[338819985,1726926659586,-3000.0,0.0001635,2]
[338819986,1726926659595,-3000.0,0.0001636,2]
[338819987,1726926659604,-152.524121,0.0001636,2]
[338819988,1726926659613,-151.0,0.0001636,2]
[338819989,1726926659623,-2277.184832,0.0001636,2]
[338819990,1726926659633,-2277.184832,0.0001636,2]
[338819991,1726926659642,-151.0,0.0001636,2]
[338819992,1726926659651,-151.0,0.0001636,2]
[338819993,1726926659661,-151.0,0.0001636,2]
[338819994,1726926659670,-391.594945,0.0001636,2]
[338819995,1726926659679,-391.594945,0.0001636,2]
[338819996,1726926659689,-151.01030865,0.00016362,2]
[338819997,1726926659698,-3000.0,0.0001637,2]
[338819998,1726926659708,-3000.0,0.0001638,2]
[338819999,1726926659717,-3000.0,0.0001639,2]
[338820000,1726926659728,-3000.0,0.000164,2]
[338820001,1726926659737,-3000.0,0.0001641,2]
[338820002,1726926659747,-577.966,0.0001642,2]
[338820003,1726926659756,-3000.0,0.0001642,2]
[338820004,1726926659765,-3000.0,0.0001643,2]
[338820005,1726926659775,-383.9,0.00016438,2]
[338820006,1726926659785,-200.0,0.00016438,2]
[338820007,1726926659794,-200.0,0.00016438,2]
[338820008,1726926659803,-200.0,0.00016438,2]
[338820009,1726926659813,-200.0,0.00016438,2]
[338820010,1726926659822,-200.0,0.00016438,2]
[338820011,1726926659831,-200.0,0.00016438,2]
[338820012,1726926659841,-200.0,0.00016438,2]
[338820013,1726926659851,-200.0,0.00016438,2]
[338820014,1726926659860,-200.0,0.00016438,2]
[338820015,1726926659869,-151.0,0.00016438,2]
[338820016,1726926659879,-3000.0,0.0001644,2]
[338820017,1726926659889,-3000.0,0.0001645,2]
[338820018,1726926659900,-3000.0,0.0001646,2]
[338820019,1726926659911,-539.98,0.00016505,2]
[338820020,1726926659922,-500.0,0.00016505,2]
[338820021,1726926659931,-887.28,0.00016505,2]
[338820022,1726926659941,-418.76433122,0.00016505,2]
[338820023,1726926659951,-200.0,0.00016505,2]
[338820024,1726926659961,-500.0,0.00016505,2]
[338820025,1726926659970,-500.0,0.00016505,2]
[338820026,1726926659980,-500.0,0.00016505,2]
[338820027,1726926659989,-14753.28,0.00016505,2]
[338820028,1726926659999,-2334.74,0.00016505,2]
[338820029,1726926660008,-508.15,0.00016506,2]
[338820030,1726926660018,-792.65,0.00016516,2]
[338820031,1726926660028,-645.64,0.00016516,2]
[338820032,1726926660038,-500.0,0.00016516,2]
[338820033,1726926660048,-450.13838067,0.00016516,2]
[338820034,1726926660057,-500.0,0.00016516,2]
[338820035,1726926660067,-500.0,0.00016516,2]
[338820036,1726926660077,-1193.54,0.00016516,2]
[338820037,1726926660086,-596.93,0.00016516,2]
[338820038,1726926660095,-500.0,0.00016516,2]
[338820039,1726926660105,-500.0,0.00016516,2]
[338820040,1726926660115,-554.6,0.00016516,2]
[338820041,1726926660125,-500.0,0.00016516,2]
[338820042,1726926660135,-500.0,0.00016516,2]
[338820043,1726926660145,-717.7,0.00016516,2]
[338820044,1726926660155,-500.0,0.00016516,2]
[338820045,1726926660166,-500.0,0.00016517,2]
[338820046,1726926660177,-508.0,0.00016517,2]
[338820047,1726926660187,-162.05,0.00016517,2]
[338820048,1726926660197,-787.39,0.00016517,2]
[338820049,1726926660206,-500.0,0.00016517,2]
[338820050,1726926660216,-627.47,0.00016517,2]
[338820051,1726926660226,-500.0,0.00016517,2]
[338820052,1726926660238,-500.0,0.00016517,2]
[338820053,1726926660248,-500.0,0.00016517,2]
[338820054,1726926660258,-1068.0,0.00016517,2]
[338820055,1726926660267,-500.0,0.00016517,2]
[338820056,1726926660278,-500.0,0.00016526,2]
[338820057,1726926660288,-500.0,0.00016526,2]
[338820058,1726926660298,-551.77,0.00016526,2]
[338820059,1726926660307,-575.3,0.00016526,2]
[338820060,1726926660317,-509.22,0.00016526,2]
[338820061,1726926660327,-625.23,0.00016526,2]
[338820062,1726926660336,-500.0,0.00016526,2]
[338820063,1726926660347,-600.0,0.00016531,2]
[338820064,1726926660360,-151.0,0.00016538,2]
[338820065,1726926660370,-150.0,0.00016569,2]
[338820066,1726926660379,-500.0,0.00016574,2]
[338820067,1726926660390,-150.0,0.00016596,2]
[338820068,1726926660399,-500.0,0.00016622,2]
[338820069,1726926660408,-150.0,0.00016624,2]
[338820070,1726926660418,-150.0,0.00016651,2]